bitfinex/quotes_SOLUSD_20241225
["timestamp","ask_amount","ask_price","bid_price","bid_amount"]
[1735109363394,9.67159186,199.51,199.43,11.30159186]
[1735109364334,9.67159186,199.51,199.44,9.67159186]
[1735109365228,9.67159186,199.51,199.43,11.30159186]
[1735109365429,9.67159186,199.5,199.43,1.63]
[1735109365700,9.67159186,199.49,199.43,1.63]
[1735109366633,9.67159186,199.5,199.43,1.63]
[1735109367539,9.67159186,199.49,199.43,1.63]
[1735109369834,9.67159186,199.48,199.43,1.63]
[1735109372221,9.67159186,199.47,199.43,1.63]
[1735109374138,9.67159186,199.48,199.43,1.63]
[1735109378855,7.5176,199.53,199.43,11.30159186]
[1735109379068,9.67159186,199.5,199.43,11.30159186]
[1735109380061,9.67159186,199.51,199.44,9.67159186]
[1735109380266,9.67159186,199.52,199.44,9.67159186]
[1735109382869,9.67159186,199.51,199.43,1.63]
[1735109383079,9.67159186,199.5,199.43,11.30159186]
[1735109383870,9.67159186,199.49,199.43,1.63]
[1735109384892,9.67159186,199.48,199.43,1.63]
[1735109385785,9.67159186,199.46,199.42,6.1094]
[1735109385994,9.67159186,199.45,199.42,6.1094]
[1735109388197,9.67159186,199.46,199.42,6.1094]
[1735109391270,9.67159186,199.43,199.39,1.6094]
[1735109395568,9.67159186,199.41,199.37,6.207]
[1735109395782,7.5213,199.44,199.37,6.207]
[1735109395783,9.67159186,199.4,199.37,6.207]
[1735109396426,9.67159186,199.4,199.34,1.6094]
[1735109397311,9.67159186,199.39,199.34,1.6094]
[1735109398310,9.67159186,199.38,199.34,1.6094]
[1735109401615,9.67159186,199.37,199.33,6.207]
[1735109402514,9.67159186,199.36,199.29,17.89549186]
[1735109402821,9.67159186,199.3,199.24,16.09160005]
[1735109403029,23.776884,199.33,199.24,16.09160005]
[1735109403030,9.67159186,199.27,199.24,8.2239]
[1735109403601,9.67159186,199.27,199.24,6.5833]
[1735109403920,9.67159186,199.26,199.23,7.86770005]
[1735109404230,7.5265,199.3,199.19,8.2239]
[1735109404231,9.67159186,199.24,199.19,8.2239]
[1735109405701,9.67159186,199.23,199.19,8.2239]
[1735109406096,9.67159186,199.22,199.19,8.2239]
[1735109406415,9.67159186,199.21,199.14,17.89549186]
[1735109406721,9.67159186,199.21,199.15,9.67159186]
[1735109407223,9.67159186,199.22,199.15,9.67159186]
[1735109408509,9.67159186,199.22,199.14,17.89549186]
[1735109408704,9.67159186,199.21,199.14,17.89549186]
[1735109410537,9.67159186,199.21,199.14,8.2239]
[1735109410739,9.67159186,199.21,199.14,17.89549186]
[1735109411915,9.67159186,199.2,199.14,6.5833]
[1735109412125,9.67159186,199.18,199.11,9.67159186]
[1735109414538,9.67159186,199.18,199.1,7.6593]
[1735109414746,9.67159186,199.21,199.14,9.67159186]
[1735109415637,9.67159186,199.21,199.1,7.6593]
[1735109416021,9.67159186,199.21,199.14,9.67159186]
[1735109416869,9.67159186,199.2,199.13,9.67159186]
[1735109418251,9.67159186,199.19,199.12,9.67159186]
[1735109420044,9.67159186,199.19,199.1,7.6593]
[1735109420248,9.67159186,199.19,199.12,9.67159186]
[1735109420422,9.67159186,199.2,199.12,9.67159186]
[1735109420950,9.67159186,199.21,199.14,9.67159186]
[1735109421646,7.5281,199.26,199.18,9.67159186]
[1735109421974,7.5281,199.26,199.11,0.87867518]
[1735109421975,9.67159186,199.24,199.11,43.43447518]
[1735109422274,9.67159186,199.24,199.17,9.67159186]
[1735109422564,9.67159186,199.24,199.16,9.67159186]
[1735109422752,9.67159186,199.24,199.17,9.67159186]
[1735109424667,9.67159186,199.23,199.11,0.87867518]
[1735109424875,9.67159186,199.22,199.15,9.67159186]
[1735109425056,9.67159186,199.21,199.14,9.67159186]
[1735109425848,20.0,199.22,199.14,9.67159186]
[1735109426050,23.776884,199.25,199.14,9.67159186]
[1735109426051,9.67159186,199.21,199.14,9.67159186]
[1735109426380,9.67159186,199.21,199.13,9.67159186]
[1735109426683,20.0,199.17,199.06,0.75320442]
[1735109426875,9.67159186,199.14,199.07,9.67159186]
[1735109427375,9.67159186,199.15,199.07,9.67159186]
[1735109427743,40.24086744,199.2,199.03,0.75341829]
[1735109427949,9.67159186,199.11,199.04,9.67159186]
[1735109428465,9.67159186,199.1,199.02,8.1223]
[1735109428667,9.67159186,199.1,199.02,17.79389186]
[1735109429559,9.67159186,199.09,199.02,8.1223]
[1735109430291,9.67159186,199.09,199.02,17.79389186]
[1735109430992,9.67159186,199.09,199.02,8.1223]
[1735109431888,9.67159186,199.08,199.02,8.1223]
[1735109433290,20.0,199.15,199.04,9.67159186]
[1735109433590,9.67159186,199.11,199.04,9.67159186]
[1735109434190,24.627639,199.19,199.05,9.67159186]
[1735109434403,9.67159186,199.12,199.02,8.1223]
[1735109434613,9.67159186,199.12,199.05,9.67159186]
[1735109437167,9.67159186,199.13,199.06,9.67159186]
[1735109437495,9.67159186,199.14,199.06,9.67159186]
[1735109437871,9.67159186,199.13,199.06,9.67159186]
[1735109438296,9.67159186,199.12,199.05,9.67159186]
[1735109438592,9.67159186,199.11,199.04,9.67159186]
[1735109440398,9.67159186,199.1,199.02,8.1223]
[1735109440713,9.67159186,199.08,199.02,8.1223]
[1735109440901,9.67159186,199.07,199.02,8.1223]
[1735109441236,9.67159186,199.08,199.02,8.1223]
[1735109442306,23.776884,199.13,199.03,9.67159186]
[1735109442489,9.67159186,199.11,199.04,9.67159186]
[1735109442990,9.67159186,199.09,199.02,8.1223]
[1735109443193,9.67159186,199.09,199.02,17.79389186]
[1735109443394,9.67159186,199.07,199.02,8.1223]
[1735109443684,9.67159186,199.06,199.02,8.1223]
[1735109443885,9.67159186,199.05,198.96,7.6875]
[1735109444101,9.67159186,199.04,198.96,17.35909186]
[1735109444301,9.67159186,199.04,198.97,9.67159186]
[1735109444478,9.67159186,199.05,198.97,9.67159186]
[1735109444979,9.67159186,199.05,198.96,7.6875]
[1735109445282,9.67159186,199.05,198.97,9.67159186]
[1735109448006,9.67159186,199.04,198.97,9.67159186]
[1735109448686,9.67159186,199.05,198.97,9.67159186]
[1735109450527,20.0,199.05,198.97,9.67159186]
[1735109450690,29.67159186,199.05,198.97,9.67159186]
[1735109450891,20.0,199.05,198.98,9.67159186]
[1735109452221,20.0,199.05,198.99,9.67159186]
[1735109454221,7.5346,199.08,198.96,7.6875]
[1735109454222,9.67159186,199.08,199.0,9.67159186]
[1735109454420,9.67159186,199.08,199.01,9.67159186]
[1735109454799,9.67159186,199.1,199.03,17.35909186]
[1735109455623,7.5331,199.12,199.03,7.6875]
[1735109455624,9.67159186,199.09,199.03,7.6875]
[1735109457821,9.67159186,199.08,199.03,7.6875]
[1735109458871,9.67159186,199.09,199.03,7.6875]
[1735109458994,9.67159186,199.11,199.03,17.35909186]
[1735109459191,9.67159186,199.11,199.04,9.67159186]
[1735109461623,9.67159186,199.1,199.03,17.35909186]
[1735109463121,20.0,199.12,199.03,17.35909186]
[1735109463304,29.67159186,199.12,199.04,9.67159186]
[1735109463622,29.67159186,199.12,199.05,9.67159186]
[1735109463998,9.67159186,199.14,199.06,9.67159186]
[1735109464229,7.5309,199.18,199.1,15.94139186]
[1735109464401,17.20249186,199.18,199.11,1.5764]
[1735109464735,9.67159186,199.18,199.11,1.5764]
[1735109466120,9.67159186,199.18,199.11,11.24799186]
[1735109466425,9.67159186,199.19,199.12,9.67159186]
[1735109466800,9.67159186,199.19,199.11,11.24799186]
[1735109467002,9.67159186,199.18,199.11,1.5764]
[1735109467436,9.67159186,199.18,199.11,11.24799186]
[1735109467622,9.67159186,199.19,199.12,9.67159186]
[1735109467815,9.67159186,199.19,199.11,11.24799186]
[1735109470033,9.67159186,199.18,199.11,11.24799186]
[1735109471238,20.08851094,199.21,199.11,11.24799186]
[1735109471443,9.67159186,199.18,199.11,11.24799186]
[1735109472437,20.08851094,199.21,199.11,1.5764]
[1735109472438,9.67159186,199.17,199.11,1.5764]
[1735109475525,9.67159186,199.16,199.11,1.5764]
[1735109476019,9.67159186,199.17,199.11,1.5764]
[1735109479465,9.67159186,199.12,199.11,1.5764]
[1735109479762,9.67159186,199.12,199.06,1.6031]
[1735109480967,9.67159186,199.13,199.06,11.27469186]
[1735109481324,9.67159186,199.12,199.06,1.6031]
[1735109481949,9.67159186,199.1,199.06,1.6031]
[1735109482144,9.67159186,199.09,199.06,1.6031]
[1735109482347,9.67159186,199.07,199.01,1.6031]
[1735109482551,9.67159186,199.06,199.01,1.6031]
[1735109482857,7.533,199.13,199.01,1.6031]
[1735109483046,9.67159186,199.06,199.01,1.6031]
[1735109483662,27.534,199.1,199.01,1.6031]
[1735109483663,9.67159186,199.05,199.01,1.6031]
[1735109488161,9.67159186,199.05,199.0,6.5315]
[1735109488359,9.67159186,199.03,198.97,1.6077]
[1735109488561,9.67159186,199.02,198.97,1.6077]
[1735109488864,9.67159186,199.03,198.97,1.6077]
[1735109489747,9.67159186,199.02,198.97,1.6077]
[1735109490471,9.67159186,199.0,198.97,1.6077]
[1735109490643,9.67159186,199.0,198.96,6.4914]
[1735109492452,11.279292,198.99,198.96,6.4914]
[1735109493467,19.34318386,199.0,198.96,6.4914]
[1735109493665,9.671592,199.0,198.96,6.4914]
[1735109493856,9.67159186,199.01,198.96,6.4914]
[1735109494164,9.671592,199.01,198.96,6.4914]
[1735109494365,9.67159186,199.02,198.96,6.4914]
[1735109494661,19.34318386,199.02,198.96,6.4914]
[1735109495240,9.67159186,199.01,198.96,6.4914]
[1735109496269,9.67159186,199.0,198.96,6.4914]
[1735109499587,9.67159186,198.99,198.96,6.4914]
[1735109500678,9.67159186,199.0,198.96,6.4914]
[1735109502965,9.67159186,199.01,198.96,6.4914]
[1735109503461,9.67159186,199.0,198.96,6.4914]
[1735109504184,9.67159186,198.99,198.92,11.27929186]
[1735109504521,9.67159186,198.98,198.92,1.6077]
[1735109504788,9.67159186,198.97,198.92,1.6077]
[1735109505287,9.67159186,198.96,198.91,6.124]
[1735109507762,9.67159186,198.95,198.91,6.124]
[1735109510392,1.97365739,199.01,198.91,6.124]
[1735109510585,9.67159186,198.93,198.91,6.124]
[1735109510893,9.67159186,198.94,198.91,6.124]
[1735109511191,9.67159186,198.95,198.91,6.124]
[1735109512291,9.67159186,198.92,198.88,1.5529]
[1735109514084,9.67159186,198.9,198.86,6.4977]
[1735109514292,9.67159186,198.89,198.86,6.4977]
[1735109516169,9.67159186,198.9,198.86,6.4977]
[1735109516385,7.5397,198.95,198.86,6.4977]
[1735109516595,19.34318386,198.95,198.87,9.67159186]
[1735109516896,9.67159186,198.92,198.86,6.4977]
[1735109517191,9.67159186,198.94,198.86,16.16929186]
[1735109517593,9.67159186,198.95,198.88,9.67159186]
[1735109517796,7.5369,199.02,198.89,11.30999186]
[1735109517999,9.67159186,198.97,198.89,11.30999186]
[1735109518994,9.67159186,198.97,198.9,9.67159186]
[1735109519202,9.67159186,198.99,198.93,6.3102]
[1735109519388,9.67159186,199.0,198.93,6.3102]
[1735109519697,9.67159186,198.99,198.93,6.3102]
[1735109520789,9.67159186,198.98,198.93,6.3102]
[1735109521415,9.67159186,198.97,198.93,6.3102]
[1735109522304,9.67159186,198.99,198.93,6.3102]
[1735109523379,9.67159186,198.97,198.93,6.3102]
[1735109525190,9.67159186,198.99,198.93,6.3102]
[1735109527424,9.67159186,198.97,198.93,6.3102]
[1735109528226,20.0,199.0,198.93,6.3102]
[1735109528400,9.67159186,198.98,198.93,6.3102]
[1735109529717,9.67159186,198.97,198.93,6.3102]
[1735109530029,20.0,199.0,198.93,6.3102]
[1735109530330,9.67159186,198.98,198.93,6.3102]
[1735109530710,9.67159186,198.96,198.93,6.3102]
[1735109531322,9.67159186,198.98,198.93,6.3102]
[1735109531774,20.0,199.0,198.93,6.3102]
[1735109531928,9.67159186,198.98,198.93,6.3102]
[1735109532102,9.67159186,198.97,198.93,6.3102]
[1735109535634,9.67159186,198.99,198.93,6.3102]
[1735109538434,9.67159186,199.01,198.93,6.3102]
[1735109540110,9.67159186,198.99,198.93,6.3102]
[1735109542259,9.671592,199.03,198.93,6.3102]
[1735109542449,9.67159186,199.0,198.93,6.3102]
[1735109545946,9.67159186,199.0,198.93,4.8102]
[1735109546740,9.67159186,198.99,198.93,4.8102]
[1735109547140,9.67159186,199.0,198.93,4.8102]
[1735109547340,9.671592,199.03,198.93,4.8102]
[1735109547341,9.67159186,198.98,198.93,4.8102]
[1735109547543,9.671592,199.03,198.94,11.32289186]
[1735109547745,9.67159186,199.04,198.96,9.67159186]
[1735109547950,9.671592,199.07,199.01,9.67159186]
[1735109548145,9.671592,199.07,199.0,23.776884]
[1735109548146,9.67159186,199.09,199.02,9.67159186]
[1735109548540,9.67159186,199.08,199.0,34.20200788]
[1735109548740,9.67159186,199.07,199.0,33.44847586]
[1735109549263,9.67159186,199.07,199.01,6.175]
[1735109552072,20.0,199.13,199.02,9.67159186]
[1735109552261,9.67159186,199.09,199.02,9.67159186]
[1735109553366,20.0,199.13,199.03,9.67159186]
[1735109553560,9.67159186,199.11,199.04,9.67159186]
[1735109553946,9.67159186,199.11,199.03,11.32289186]
[1735109555173,9.67159186,199.12,199.05,9.67159186]
[1735109555505,9.67159186,199.13,199.06,8.67159186]
[1735109556569,17.78067327,199.18,199.08,15.84659186]
[1735109556775,9.67159186,199.15,199.08,15.84659186]
[1735109558508,9.67159186,199.14,199.08,6.175]
[1735109558999,20.0,199.16,199.08,6.175]
[1735109559293,9.67159186,199.14,199.08,6.175]
[1735109559497,9.67159186,199.13,199.08,6.175]
[1735109560397,9.67159186,199.14,199.08,6.175]
[1735109561594,20.0,199.17,199.09,25.294884]
[1735109561798,9.67159186,199.15,199.09,25.294884]
[1735109562173,9.67159186,199.16,199.09,34.96647586]
[1735109563174,20.0,199.17,199.09,34.96647586]
[1735109563175,9.67159186,199.17,199.09,34.96647586]
[1735109564306,9.67159186,199.17,199.09,35.71967689]
[1735109564474,9.67159186,199.16,199.09,34.96647586]
[1735109564679,9.67159186,199.16,199.09,1.518]
[1735109568327,9.67159186,199.16,199.09,11.18959186]
[1735109569113,9.67159186,199.16,199.09,1.518]
[1735109571519,9.67159186,199.16,199.09,11.18959186]
[1735109572208,17.04909199,199.24,199.09,11.18959186]
[1735109572209,9.67159186,199.18,199.09,11.18959186]
[1735109572416,9.67159186,199.18,199.1,23.776884]
[1735109572621,9.67159186,199.18,199.1,24.53003726]
[1735109574192,20.0,199.2,199.12,23.776884]
[1735109574417,20.0,199.2,199.13,9.67159186]
[1735109574718,20.0,199.2,199.14,6.1113]
[1735109578024,7.5279,199.26,199.15,23.776884]
[1735109578219,9.67159186,199.22,199.16,1.6239]
[1735109579820,20.0,199.23,199.16,1.6239]
[1735109580056,29.67159186,199.23,199.16,1.6239]
[1735109580707,9.67159186,199.22,199.16,1.6239]
[1735109581218,29.67159186,199.23,199.16,1.6239]
[1735109581701,20.0,199.26,199.17,23.776884]
[1735109581900,20.0,199.26,199.17,33.44847586]
[1735109581901,9.67159186,199.24,199.17,33.44847586]
[1735109582531,9.67159186,199.21,199.16,1.6239]
[1735109582701,9.67159186,199.17,199.14,6.1113]
[1735109582896,23.776884,199.25,199.11,1.6239]
[1735109582897,9.67159186,199.16,199.11,1.6239]
[1735109583111,25.351984,199.25,199.11,1.6239]
[1735109583112,9.67159186,199.15,199.11,1.6239]
[1735109583523,25.351984,199.25,199.11,1.6239]
[1735109583524,9.67159186,199.16,199.11,1.6239]
[1735109585524,9.67159186,199.18,199.11,1.6239]
[1735109586330,9.67159186,199.19,199.12,0.7532169]
[1735109587425,29.67159186,199.21,199.13,33.44847586]
[1735109587727,20.0,199.21,199.14,9.67159186]
[1735109588338,9.67159186,199.22,199.14,9.67159186]
[1735109592515,9.67159186,199.22,199.15,6.596]
[1735109595411,9.67159186,199.2,199.15,6.596]
[1735109595617,9.67159186,199.19,199.15,6.596]
[1735109599130,9.67159186,199.17,199.15,6.596]
[1735109599530,9.67159186,199.18,199.15,6.596]
[1735109599849,9.67159186,199.19,199.15,6.596]
[1735109600342,9.67159186,199.2,199.15,6.596]
[1735109600749,9.67159186,199.21,199.15,6.596]
[1735109603254,8.29317573,199.3,199.16,24.52992758]
[1735109603255,20.0,199.26,199.16,24.52992758]
[1735109603589,38.68636744,199.32,199.19,9.67159186]
[1735109603752,9.67159186,199.26,199.19,9.67159186]
[1735109603930,9.67159186,199.26,199.18,34.20129978]
[1735109604158,9.67159186,199.25,199.18,34.20129978]
[1735109604327,9.67159186,199.25,199.18,33.44847586]
[1735109605363,9.67159186,199.24,199.17,1.6011]
[1735109605547,9.67159186,199.25,199.17,11.27269186]
[1735109606363,7.5259,199.31,199.18,60.460474]
[1735109606552,9.67159186,199.27,199.2,9.67159186]
[1735109606936,9.67159186,199.26,199.18,40.88494185]
[1735109607467,9.67159186,199.26,199.18,40.75945185]
[1735109607674,9.67159186,199.25,199.18,6.5581]
[1735109615262,9.67159186,199.23,199.18,6.5581]
[1735109615575,9.67159186,199.21,199.18,6.5581]
[1735109617173,7.5278,199.27,199.18,6.5581]
[1735109617174,9.67159186,199.22,199.18,6.5581]
[1735109618373,9.67159186,199.21,199.18,6.5581]
[1735109619368,9.67159186,199.22,199.18,6.5581]
[1735109621375,9.67159186,199.21,199.18,6.5581]
[1735109621579,7.5278,199.27,199.18,6.5581]
[1735109621750,9.67159186,199.22,199.18,6.5581]
[1735109622070,9.67159186,199.19,199.13,6.1143]
[1735109625273,9.67159186,199.2,199.13,6.1143]
[1735109625480,9.67159186,199.2,199.13,15.78589186]
[1735109627447,9.67159186,199.2,199.13,6.1143]
[1735109629956,9.67159186,199.19,199.13,6.1143]
[1735109630279,9.67159186,199.18,199.13,6.1143]
[1735109630458,9.67159186,199.16,199.13,6.1143]
[1735109633188,9.67159186,199.17,199.13,6.1143]
[1735109633984,9.67159186,199.18,199.13,6.1143]
[1735109634283,9.67159186,199.19,199.13,6.1143]
[1735109634489,9.67159186,199.18,199.13,6.1143]
[1735109640496,9.67159186,199.15,199.13,6.1143]
[1735109643560,7.5303,199.2,199.08,10.42485092]
[1735109643561,9.67159186,199.14,199.08,7.6441]
[1735109644394,9.67159186,199.1,199.08,6.0603]
[1735109644764,9.67159186,199.1,199.03,17.31569186]
[1735109645080,9.67159186,199.11,199.03,17.31569186]
[1735109645784,9.67159186,199.11,199.04,10.4250046]
[1735109646185,9.67159186,199.11,199.04,0.75341274]
[1735109646392,9.67159186,199.11,199.04,10.4250046]
[1735109646586,9.67159186,199.13,199.05,33.44847586]
[1735109646892,9.67159186,199.13,199.06,10.42490331]
[1735109647281,9.0587,199.21,199.09,9.67159186]
[1735109647477,9.0587,199.21,199.11,1.5838]
[1735109647478,9.67159186,199.17,199.11,1.5838]
[1735109650585,9.67159186,199.19,199.11,1.5838]
[1735109650972,9.67159186,199.19,199.12,10.42468715]
[1735109654403,9.67159186,199.19,199.12,0.75309529]
[1735109654606,9.67159186,199.19,199.12,23.776884]
[1735109660826,9.67159186,199.19,199.12,24.52997039]
[1735109663009,9.67159186,199.19,199.12,23.776884]
[1735109668627,20.0,199.21,199.12,24.53000638]
[1735109668822,9.67159186,199.18,199.12,24.53000638]
[1735109672933,20.0,199.21,199.12,24.53000638]
[1735109673114,9.67159186,199.19,199.12,24.53000638]
[1735109673545,9.67159186,199.19,199.12,34.20159824]
[1735109674234,9.67159186,199.21,199.12,34.20159824]
[1735109674438,9.67159186,199.21,199.12,156.70159824]
[1735109674736,9.67159186,199.21,199.12,155.94847586]
[1735109674908,9.67159186,199.21,199.13,0.75301601]
[1735109675515,9.67159186,199.19,199.13,0.75301601]
[1735109675718,9.67159186,199.19,199.12,146.276884]
[1735109676035,9.671592,199.25,199.11,11.25539186]
[1735109676036,9.67159186,199.17,199.11,1.5838]
[1735109678654,9.67159186,199.19,199.11,1.5838]
[1735109679761,9.67159186,199.19,199.11,11.25539186]
[1735109684168,7.5297,199.22,199.11,11.25539186]
[1735109684370,9.67159186,199.19,199.11,11.25539186]
[1735109690268,7.5297,199.22,199.12,24.53000999]
[1735109690269,20.0,199.22,199.12,24.53000999]
[1735109690448,9.67159186,199.21,199.12,24.53000999]
[1735109690650,9.67159186,199.21,199.13,9.67159186]
[1735109690967,20.0,199.22,199.13,9.67159186]
[1735109691282,9.67159186,199.21,199.13,9.67159186]
[1735109694481,9.67159186,199.19,199.11,124.0838]
[1735109695491,9.67159186,199.19,199.11,1.5838]
[1735109702103,9.67159186,199.17,199.11,1.5838]
[1735109705385,9.67159186,199.16,199.11,1.5838]
[1735109706982,9.67159186,199.17,199.11,1.5838]
[1735109711809,9.67159186,199.12,199.06,8.283]
[1735109712504,9.07545348,199.12,199.06,8.283]
[1735109713533,9.67159186,199.13,199.06,17.95459186]
[1735109714008,9.671592,199.15,199.06,17.95459186]
[1735109714009,9.67159186,199.14,199.06,17.95459186]
[1735109715002,9.67159186,199.14,199.07,9.67159186]
[1735109716730,7.5307,199.19,199.08,9.67159186]
[1735109717035,9.67159186,199.15,199.08,9.67159186]
[1735109718399,9.67159186,199.16,199.09,9.67159186]
[1735109718606,9.67159186,199.18,199.11,9.67159186]
[1735109721845,20.0,199.2,199.13,6.6307]
[1735109722130,20.0,199.2,199.13,16.30229186]
[1735109722131,9.671592,199.2,199.13,16.30229186]
[1735109722319,9.67159186,199.19,199.13,6.6307]
[1735109722523,9.67159186,199.18,199.13,6.6307]
[1735109723238,20.0,199.2,199.13,6.6307]
[1735109723404,9.67159186,199.19,199.13,6.6307]
[1735109723906,29.67159186,199.2,199.13,16.30229186]
[1735109724217,9.67159186,199.2,199.13,16.30229186]
[1735109724409,9.87518064,199.26,199.14,9.67159186]
[1735109724410,9.67159186,199.21,199.14,9.67159186]
[1735109724619,9.67159186,199.22,199.14,9.67159186]
[1735109724837,9.671592,199.24,199.16,9.67159186]
[1735109725037,7.87185764,199.3,199.2,16.30229186]
[1735109725212,7.87185764,199.3,199.21,9.67159186]
[1735109725213,9.67159186,199.28,199.21,9.67159186]
[1735109725528,9.67159186,199.27,199.2,16.30229186]
[1735109725939,9.67159186,199.27,199.2,6.6307]
[1735109727411,9.67159186,199.26,199.2,6.6307]
[1735109727613,14.529943,199.3,199.2,6.6307]
[1735109727614,9.67159186,199.27,199.2,16.30229186]
[1735109727898,14.529943,199.3,199.23,9.67159186]
[1735109727899,9.67159186,199.3,199.23,9.67159186]
[1735109728513,9.67159186,199.3,199.22,9.67159186]
[1735109729340,9.67159186,199.29,199.22,9.67159186]
[1735109731314,9.67159186,199.29,199.2,138.80229186]
[1735109731537,9.67159186,199.29,199.2,129.1307]
[1735109731744,9.67159186,199.29,199.2,138.80229186]
[1735109732823,9.67159186,199.26,199.2,6.6307]
[1735109733014,9.67159186,199.24,199.2,6.6307]
[1735109734947,9.67159186,199.25,199.2,6.6307]
[1735109735845,9.67159186,199.26,199.2,6.6307]
[1735109736044,9.67159186,199.28,199.2,16.30229186]
[1735109738539,22.0805679,199.33,199.22,9.67159186]
[1735109738741,9.67159186,199.3,199.22,9.67159186]
[1735109738949,9.67159186,199.28,199.21,34.20125721]
[1735109739121,9.67159186,199.28,199.21,33.44847586]
[1735109739322,22.0805679,199.33,199.21,33.44847586]
[1735109739538,9.67159186,199.29,199.21,33.44847586]
[1735109740746,9.67159186,199.29,199.21,9.67159186]
[1735109741453,7.526,199.31,199.21,10.42434867]
[1735109741620,9.67159186,199.29,199.21,10.42434867]
[1735109742423,9.67159186,199.29,199.21,0.75275681]
[1735109742617,9.67159186,199.29,199.21,10.42434867]
[1735109746618,9.67159186,199.29,199.21,132.92434867]
[1735109746919,9.67159186,199.29,199.21,132.17159186]
[1735109748451,9.67159186,199.29,199.21,122.5]
[1735109748662,9.67159186,199.27,199.2,6.6307]
[1735109748864,9.67159186,199.25,199.2,6.6307]
[1735109750856,7.5274,199.27,199.2,6.6307]
[1735109750857,9.67159186,199.24,199.2,6.6307]
[1735109751266,9.67159186,199.25,199.2,6.6307]
[1735109753361,9.67159186,199.24,199.2,6.6307]
[1735109755567,9.67159186,199.25,199.2,6.6307]
[1735109756064,9.67159186,199.26,199.2,6.6307]
[1735109757044,9.67159186,199.27,199.2,6.6307]
[1735109757249,29.67159186,199.27,199.2,6.6307]
[1735109758369,9.67159186,199.26,199.2,6.6307]
[1735109761268,9.67159186,199.25,199.2,6.6307]
[1735109766978,9.67159186,199.22,199.18,1.6523]
[1735109767165,9.67159186,199.21,199.15,6.3902]
[1735109767413,9.67159186,199.2,199.15,6.3902]
[1735109767753,9.67159186,199.21,199.15,6.3902]
[1735109773970,7.5296,199.22,199.15,16.06179186]
[1735109773971,9.67159186,199.22,199.15,16.06179186]
[1735109774168,9.67159186,199.21,199.15,6.3902]
[1735109774866,9.67159186,199.19,199.15,6.3902]
[1735109775081,9.67159186,199.16,199.09,6.3787]
[1735109775389,9.67159186,199.14,199.09,6.3787]
[1735109777585,20.0,199.14,199.09,6.3787]
[1735109777883,29.67159186,199.14,199.09,6.3787]
[1735109778971,9.67159186,199.13,199.09,6.3787]
[1735109787595,9.67159186,199.12,199.09,6.3787]
[1735109788138,9.67159186,199.1,199.04,6.1326]
[1735109788398,9.67159186,199.07,199.04,6.1326]
[1735109788564,9.67159186,199.06,199.04,6.1326]
[1735109788873,9.67159186,199.06,199.02,1.6149]
[1735109790266,9.67159186,199.03,198.99,6.1326]
[1735109790603,9.67159186,199.01,198.99,6.1326]
[1735109791498,9.67159186,199.04,198.99,6.1326]
[1735109791668,9.67159186,199.06,198.99,15.80419186]
[1735109792381,9.67159186,199.06,198.99,6.1326]
[1735109793076,9.67159186,199.05,198.99,6.1326]
[1735109793894,9.67159186,199.06,198.99,15.80419186]
[1735109794584,9.67159186,199.05,198.99,6.1326]
[1735109794990,7.5342,199.1,198.99,6.1326]
[1735109795179,9.67159186,199.06,198.99,15.80419186]
[1735109795896,9.67159186,199.05,198.99,6.1326]
[1735109796098,9.67159186,199.04,198.99,6.1326]
[1735109796599,9.67159186,199.06,198.99,6.1326]
[1735109796803,9.67159186,199.06,198.99,15.80419186]
[1735109797570,9.67159186,199.06,198.99,6.1326]
[1735109800078,9.67159186,199.05,198.99,6.1326]
[1735109800704,9.67159186,199.04,198.99,6.1326]
[1735109802019,9.67159186,199.03,198.99,6.1326]
[1735109802894,9.67159186,199.01,198.94,6.51]
[1735109803102,9.67159186,199.0,198.94,6.51]
[1735109805798,9.67159186,198.99,198.94,6.51]
[1735109806723,9.67159186,198.97,198.94,6.51]
[1735109806924,9.67159186,198.96,198.89,16.18159186]
[1735109807218,9.67159186,198.96,198.89,6.51]
[1735109809230,9.67159186,198.95,198.89,6.51]
[1735109810245,9.67159186,198.96,198.89,6.51]
[1735109811633,7.5387,198.98,198.89,16.18159186]
[1735109811937,9.67159186,198.97,198.9,9.67159186]
[1735109812298,9.67159186,198.98,198.9,9.67159186]
[1735109815233,9.67159186,198.97,198.9,9.67159186]
[1735109817235,9.67159186,198.96,198.89,16.18159186]
[1735109820140,29.67159186,198.97,198.89,16.18159186]
[1735109820459,9.67159186,198.97,198.88,1.5725]